bitfinex-derivatives/quotes_ETHF0:USTF0_20251223
["timestamp","ask_amount","ask_price","bid_price","bid_amount"]
[1766509863130,3.5522,2956.4,2955.4,3.383]
[1766509863436,3.383,2956.3,2955.5,3.383]
[1766509863931,3.383,2956.3,2955.6,0.00507159]
[1766509865223,0.16917,2957.0,2955.6,0.00507159]
[1766509865430,3.55218,2956.9,2955.6,0.00507159]
[1766509865629,0.16918,2956.8,2955.6,0.00507159]
[1766509866437,0.16919,2956.7,2955.7,3.383]
[1766509866842,3.383,2956.6,2955.7,3.383]
[1766509867136,0.1692,2956.5,2955.7,3.383]
[1766509867839,0.1692,2956.5,2955.6,3.38807159]
[1766509870737,3.3853,2956.6,2955.6,0.00507159]
[1766509870738,0.16921,2956.4,2955.6,0.00507159]
[1766509870930,0.16922,2956.2,2955.0,0.0021]
[1766509871129,3.383,2956.1,2955.0,0.0021]
[1766509871338,3.383,2956.1,2954.9,0.00297782]
[1766509871939,3.383,2956.1,2955.2,0.00507159]
[1766509873335,3.383,2956.1,2955.2,3.38807159]
[1766509873829,0.16922,2956.2,2955.2,3.38907159]
[1766509874038,3.384,2956.1,2955.2,3.38907159]
[1766509874637,3.55322,2956.1,2955.2,0.00507159]
[1766509878537,3.55322,2956.1,2955.1,3.37837159]
[1766509879646,3.55322,2956.1,2955.3,0.00507159]
[1766509879841,6.089,2956.5,2955.4,3.384]
[1766509880049,3.384,2956.4,2955.4,3.384]
[1766509881449,3.384,2956.4,2955.3,0.00677159]
[1766509881650,3.384,2956.4,2955.4,3.384]
[1766509884243,0.1692,2956.5,2955.4,3.384]
[1766509887844,0.00838076,2957.1,2956.4,1.80329113]
[1766509888049,3.384,2958.1,2956.5,9.387]
[1766509888243,0.16913,2957.8,2956.6,3.384]
[1766509888449,3.384,2957.7,2956.6,3.384]
[1766509888650,5.21913,2957.7,2956.6,3.384]
[1766509888951,0.00507159,2957.4,2956.9,0.00507159]
[1766509889156,3.384,2957.3,2956.9,0.00507159]
[1766509889752,3.384,2957.3,2956.5,3.384]
[1766509890758,3.384,2957.3,2956.6,0.00507159]
[1766509890960,0.00507159,2957.4,2956.6,0.00507159]
[1766509892260,0.00507159,2957.4,2956.7,3.383]
[1766509892557,0.17343322,2957.7,2956.6,0.00507159]
[1766509892757,3.383,2957.6,2956.6,0.00507159]
[1766509893060,3.383,2957.6,2956.7,3.383]
[1766509893660,0.00507159,2957.4,2956.7,3.383]
[1766509895857,0.00507159,2957.4,2956.6,0.00507159]
[1766509896050,0.00507159,2957.4,2956.7,3.383]
[1766509897158,0.00507159,2957.4,2956.8,3.383]
[1766509899063,0.00507159,2957.4,2956.6,0.00507159]
[1766509899357,1.16791933,2957.0,2956.3,3.383]
[1766509899566,3.383,2956.9,2956.1,3.383]
[1766509900062,3.383,2956.9,2955.8,6.001]
[1766509900264,3.383,2956.9,2956.1,3.38807159]
[1766509901662,3.383,2956.9,2956.1,0.00507159]
[1766509901863,0.16918,2956.8,2955.2,1.80275712]
[1766509902050,0.1692,2956.5,2955.1,0.0016]
[1766509902256,0.16921,2956.3,2955.2,3.383]
[1766509902456,3.383,2956.4,2954.6,1.80275712]
[1766509902658,44.183,2956.4,2955.0,3.383]
[1766509902859,0.00507159,2956.0,2955.4,0.00338097]
[1766509903061,3.383,2955.9,2955.0,3.383]
[1766509904365,3.383,2955.9,2954.9,0.00457782]
[1766509904671,3.383,2955.9,2955.1,3.383]
[1766509904960,3.383,2955.9,2954.9,0.00297782]
[1766509905159,3.383,2955.9,2955.0,3.383]
[1766509906065,0.16918,2956.9,2955.5,1.80275712]
[1766509906360,3.55218,2956.8,2955.6,3.383]
[1766509906560,44.183,2956.7,2954.9,1.80573494]
[1766509906868,0.1692,2956.5,2955.1,4.632]
[1766509907077,0.00507159,2956.1,2955.2,3.383]
[1766509907381,3.38807159,2956.1,2955.2,3.383]
[1766509908972,3.38807159,2956.1,2954.9,0.07227782]
[1766509909171,0.16924,2955.9,2955.0,3.383]
[1766509909387,3.55224,2955.8,2955.0,3.383]
[1766509909688,3.55224,2955.8,2954.9,0.00297782]
[1766509909982,3.55224,2955.8,2955.0,3.383]
[1766509911180,3.55224,2955.8,2954.9,0.00297782]
[1766509911384,3.55224,2955.8,2954.9,3.38697782]
[1766509911578,0.16925,2955.6,2953.7,1.80275712]
[1766509911780,3.55326,2955.5,2954.1,0.06889999]
[1766509911978,0.16926,2955.4,2953.5,1.80275712]
[1766509912284,0.16926,2955.4,2953.6,17.845]
[1766509912589,0.17181619,2955.4,2953.6,17.84805646]
[1766509913279,0.16927,2955.3,2953.7,6.001]
[1766509913484,3.384,2955.2,2953.7,9.385]
[1766509914084,3.55327,2955.2,2953.7,9.385]
[1766509914387,0.1693,2954.8,2953.8,3.384]
[1766509914574,4.354,2955.1,2953.6,0.07205645]
[1766509914575,0.00507159,2954.6,2953.6,0.00305646]
[1766509914885,3.384,2954.5,2953.6,0.00305646]
[1766509915278,3.384,2954.5,2953.7,3.384]
[1766509915584,3.384,2954.5,2953.8,3.384]
[1766509915978,0.00507159,2954.6,2953.8,3.384]
[1766509916176,3.384,2954.9,2953.9,1.80275712]
[1766509916377,3.384,2955.2,2953.9,1.80275712]
[1766509916584,0.17181619,2955.4,2954.2,1.80275712]
[1766509916781,0.17181619,2955.4,2954.3,7.364]
[1766509917185,0.17181619,2955.4,2954.2,1.80275712]
[1766509917383,0.00507159,2955.1,2954.5,0.00507159]
[1766509917589,0.00507159,2955.1,2954.6,3.384]
[1766509918492,0.00255619,2955.4,2954.6,3.384]
[1766509918893,3.384,2955.6,2954.6,3.384]
[1766509919087,5.544,2956.0,2954.6,3.384]
[1766509919390,5.544,2956.0,2954.8,1.80275712]
[1766509919691,0.00507159,2955.7,2954.9,5.054]
[1766509920576,0.00507159,2955.7,2954.5,1.80782871]
[1766509920781,3.38907159,2955.7,2954.6,5.021]
[1766509921983,3.38907159,2955.7,2954.6,6.82375712]
[1766509923095,3.38907159,2955.7,2954.6,5.021]
[1766509923599,3.38907159,2955.7,2954.7,9.386]
[1766509925579,3.38907159,2955.7,2954.6,0.0691]
[1766509925779,0.16925,2955.6,2954.5,3.38907159]
[1766509926593,0.16925,2955.6,2954.6,1.80275712]
[1766509926594,3.384,2955.6,2954.6,1.80275712]
[1766509927890,3.384,2955.6,2954.5,0.07417159]
[1766509928192,3.384,2955.6,2954.6,3.384]
[1766509928493,3.55325,2955.6,2954.6,3.384]
[1766509928882,0.16926,2955.5,2954.5,0.00507159]
[1766509929195,0.16926,2955.5,2954.6,3.384]
[1766509931390,0.00507159,2955.7,2954.6,3.384]
[1766509932195,0.00507159,2955.7,2954.5,0.07407158]
[1766509932196,0.00507159,2955.7,2954.7,3.385]
[1766509932788,0.17432159,2955.7,2954.7,3.385]
[1766509934092,0.00507159,2955.7,2954.5,0.00507159]
[1766509934294,2.04455843,2955.6,2954.4,3.385]
[1766509934600,11.847,2955.5,2954.4,3.385]
[1766509934898,3.476,2955.4,2953.8,4.979]
[1766509935090,3.476,2955.4,2954.1,3.385]
[1766509935488,40.8,2955.3,2954.1,3.385]
[1766509935689,3.385,2955.2,2954.1,3.385]
[1766509936286,3.385,2955.2,2953.7,0.0692]
[1766509936500,0.16929,2954.9,2953.8,3.385]
[1766509936701,3.385,2954.8,2953.8,3.385]
[1766509937405,40.8,2955.3,2953.8,3.385]
[1766509937596,3.385,2955.3,2953.8,3.385]
[1766509938592,0.16927,2955.2,2953.9,6.752]
[1766509938791,0.16929,2955.0,2954.0,3.385]
[1766509939002,3.385,2954.9,2954.1,3.385]
[1766509940795,3.385,2954.9,2953.6,0.00305646]
[1766509940996,3.385,2954.9,2953.7,0.396]
[1766509941196,3.385,2954.9,2953.8,3.385]
[1766509942601,3.385,2954.9,2953.7,0.06899999]
[1766509942798,0.1693,2954.8,2953.8,3.385]
[1766509943000,0.16931,2954.6,2953.8,3.385]
[1766509943199,3.385,2954.5,2953.8,3.385]
[1766509944099,3.385,2954.5,2953.6,0.00305646]
[1766509944298,3.385,2954.5,2953.7,3.385]
[1766509944493,3.385,2954.5,2953.6,0.00305646]
[1766509944494,0.16932,2954.4,2953.6,0.00305646]
[1766509944700,0.16933,2954.2,2953.6,0.00305646]
[1766509944907,3.385,2954.1,2953.4,3.385]
[1766509945906,3.385,2954.1,2953.4,3.38813358]
[1766509947008,3.55434,2954.1,2953.0,0.0691]
[1766509947206,3.55434,2954.1,2953.1,3.385]
[1766509947507,3.385,2954.1,2952.7,0.19863721]
[1766509947704,0.16935,2953.9,2952.8,3.385]
[1766509947902,8.53817159,2954.2,2952.8,3.385]
[1766509947903,3.55436,2953.8,2952.8,3.385]
[1766509948199,3.55436,2953.8,2952.8,0.00304131]
[1766509948407,3.55436,2953.8,2952.9,3.385]
[1766509948708,3.55436,2953.8,2952.8,0.00304131]
[1766509948709,9.64436,2953.8,2952.8,0.00304131]
[1766509949310,3.3875734,2953.9,2952.8,0.00304131]
[1766509950210,0.0025734,2953.9,2952.8,0.00304131]
[1766509950711,0.0025734,2953.9,2952.8,3.42204131]
[1766509950911,3.386,2953.8,2952.8,0.00304131]
[1766509951103,3.386,2953.8,2952.9,3.386]
[1766509952206,3.386,2953.8,2952.8,0.0719413]
[1766509952406,3.386,2953.8,2952.9,3.386]
[1766509952805,3.386,2953.8,2952.8,0.00304131]
[1766509953006,0.16936,2953.7,2952.8,0.00304131]
[1766509956911,0.16937,2953.6,2952.8,0.00304131]
[1766509957108,3.386,2953.5,2952.8,0.00304131]
[1766509957510,0.16939,2953.2,2951.7,5.208]
[1766509957705,0.16939,2953.2,2951.8,3.386]
[1766509957706,9.476,2953.1,2951.8,3.386]
[1766509958410,9.476,2953.1,2951.8,3.38964995]
[1766509958918,0.16939,2953.2,2951.8,3.38964995]
[1766509959211,3.526,2953.5,2951.8,5.43420838]
[1766509959411,0.1719234,2953.9,2951.8,5.60367838]
[1766509959612,9.476,2953.8,2951.8,5.60367838]
[1766509959809,9.64535,2953.8,2951.8,5.60367838]
[1766509960011,0.16937,2953.6,2951.8,5.60367838]
[1766509960207,3.55537,2953.5,2951.8,3.55911995]
[1766509960515,3.55537,2953.5,2951.9,17.855]
[1766509960913,0.16938,2953.4,2951.9,17.855]
[1766509961310,3.386,2953.5,2951.9,9.388]
[1766509961515,0.16942,2952.7,2951.8,0.00364995]
[1766509961719,0.00508026,2952.5,2951.9,3.386]
[1766509962013,3.386,2952.7,2951.9,3.386]
[1766509962212,3.387,2952.7,2951.9,3.386]
[1766509962911,0.00508026,2952.6,2952.0,0.00508026]
[1766509963913,3.387,2952.7,2952.0,0.00508026]
[1766509964116,0.16939,2953.2,2952.0,0.00508026]
[1766509964319,3.387,2953.1,2952.0,0.00508026]
[1766509965018,0.00508026,2952.8,2952.0,0.00508026]
[1766509965214,3.39208026,2952.8,2952.0,3.39208026]
[1766509967912,0.00508026,2952.8,2952.0,0.00508026]
[1766509968112,0.00508026,2952.8,2952.1,3.387]
[1766509968613,3.387,2953.0,2952.1,3.387]
[1766509969619,0.00508026,2952.8,2952.0,0.00998026]
[1766509969821,0.00508026,2952.8,2952.1,3.387]
[1766509970718,0.00508026,2952.8,2952.0,0.00508026]
[1766509971110,0.00508026,2952.8,2952.1,3.387]
[1766509971820,0.00508026,2952.8,2952.0,0.00508026]
[1766509972122,0.00508026,2952.8,2952.1,3.387]
[1766509972618,3.387,2952.7,2951.8,0.00364995]
[1766509972919,3.387,2952.7,2951.8,3.39064995]
[1766509973722,3.387,2952.7,2952.0,0.00508026]
[1766509974018,3.387,2952.7,2950.9,0.16952]
[1766509974019,3.55642,2952.7,2950.9,0.16952]
[1766509974223,17.666,2952.7,2951.0,3.387]
[1766509974517,0.16948,2951.7,2949.8,3.387]
[1766509974720,40.8,2952.0,2950.3,2.04455843]
[1766509974912,44.187,2952.0,2950.4,3.387]
[1766509975224,0.16949,2951.5,2950.5,3.387]
[1766509975426,3.387,2951.4,2950.5,3.387]
[1766509976317,0.00508026,2951.2,2950.4,0.00305891]
[1766509976922,0.00508026,2951.2,2947.4,4.17431673]
[1766509977216,0.16953,2950.8,2948.8,0.16964]
[1766509977517,3.388,2950.7,2948.7,0.0165]
[1766509977712,3.55753,2950.7,2948.5,0.0008]
[1766509977912,3.01270922,2950.6,2948.5,0.00375341]
[1766509978115,0.16957,2950.1,2948.5,0.01575341]
[1766509978311,0.00508026,2949.6,2948.6,3.388]
[1766509978519,3.388,2949.5,2948.6,3.388]
[1766509979223,0.02531043,2949.6,2945.1,0.20101407]
[1766509979413,2.04455843,2949.1,2947.0,3.388]
[1766509979619,0.00508906,2948.3,2947.1,3.388]
[1766509979822,3.39308906,2948.3,2947.1,3.388]
[1766509980221,0.16968,2948.2,2947.1,3.39129179]
[1766509980423,5.40268,2948.1,2947.1,0.00329179]
[1766509980722,0.16969,2947.9,2947.1,0.00329179]
[1766509980928,0.16969,2947.9,2946.6,3.4054]
[1766509980929,0.16971,2947.7,2946.6,3.389]
[1766509981116,0.16973,2947.3,2946.0,3.389]
[1766509981318,6.64989888,2949.2,2946.1,3.389]
[1766509981522,0.16964,2948.8,2946.5,2.04455843]
[1766509981824,3.389,2948.5,2946.6,14.795]
[1766509982226,3.389,2948.5,2946.7,9.395]
[1766509982429,0.00508906,2947.9,2947.3,0.00508906]
[1766509982727,3.389,2947.8,2947.3,0.00508906]
[1766509982926,0.16967,2948.3,2947.3,0.00508906]
[1766509983232,3.39,2948.1,2947.3,0.00508906]
[1766509984128,0.00508906,2948.0,2947.3,0.00508906]
[1766509984326,0.00508906,2948.0,2947.0,3.39]
[1766509984528,0.00508906,2948.0,2946.9,3.39]
[1766509985229,3.55965,2948.7,2947.0,8.476]
[1766509985425,3.39,2949.0,2947.1,2.04455843]
[1766509985632,3.39,2949.0,2947.2,9.398]
[1766509985934,3.39,2949.0,2947.3,14.486]
[1766509986129,3.39,2949.0,2947.7,0.00508906]
[1766509986339,3.391,2949.4,2947.8,3.391]
[1766509986633,8.477,2950.0,2947.9,6.01]
[1766509986634,3.391,2949.8,2947.9,6.01]
[1766509986829,3.56059,2949.8,2947.9,6.01]
[1766509987029,0.00508906,2949.1,2947.9,6.01]
[1766509987536,0.00841418,2949.1,2948.0,17.879]
[1766509987733,0.00841418,2949.1,2947.7,2.04964749]
[1766509988036,3.56059,2949.8,2948.1,6.011]
[1766509988236,3.56059,2949.8,2948.2,3.391]
[1766509988835,3.56059,2949.8,2948.3,9.403]
[1766509989034,0.00508906,2949.3,2948.3,9.403]
[1766509989637,0.16962,2949.2,2948.0,3.391]
[1766509990033,0.00508906,2949.3,2948.0,3.391]
[1766509991932,0.00508906,2949.3,2947.9,0.0172]
[1766509992236,0.00508906,2949.3,2948.0,17.678]
[1766509992533,0.00508906,2949.3,2948.0,19.49018341]
[1766509993042,0.16959,2949.7,2948.3,1.81218341]
[1766509993230,0.16959,2949.7,2948.4,3.391]
[1766509993430,0.00332295,2949.8,2948.3,1.81218341]
[1766509993636,0.00332295,2949.8,2948.4,17.563]
[1766509993834,0.00332295,2949.8,2948.6,1.81218341]
[1766509994037,0.00332295,2949.8,2948.7,3.391]
[1766509994834,0.00332295,2949.8,2948.6,0.02155565]
[1766509995138,0.00332295,2949.8,2948.7,3.411]
[1766509995436,0.00332295,2949.8,2948.8,1.81218341]
[1766509995831,0.00332295,2949.8,2948.9,17.882]
[1766509998140,0.00332295,2949.8,2949.0,9.405]
[1766509998436,0.00332295,2949.8,2948.9,6.014]
[1766509998437,1.18325145,2949.7,2948.9,6.014]
[1766509998741,1.01366145,2949.6,2949.0,3.391]
[1766509999129,1.01366145,2949.5,2949.0,3.391]
[1766509999442,1.01366145,2949.4,2949.0,3.391]
[1766509999639,1.01366145,2949.3,2949.0,3.391]
[1766509999840,0.00332295,2949.8,2949.0,3.391]
[1766510000039,0.92151507,2949.9,2949.2,1.81218341]
[1766510000243,0.16955,2950.3,2949.3,9.41008906]
[1766510001129,0.17249052,2950.3,2949.4,9.405]
[1766510001330,0.16956,2950.2,2949.5,3.391]
[1766510001840,0.16956,2950.2,2949.6,3.391]
[1766510002041,0.00294052,2950.3,2949.6,3.391]
[1766510004037,0.00294052,2950.3,2949.3,0.00508906]
[1766510004239,0.00294052,2950.3,2949.4,9.405]
[1766510005649,0.00294052,2950.3,2949.3,0.06408906]
[1766510005840,0.00294052,2950.3,2949.5,6.013]
[1766510006547,0.13524763,2950.5,2949.6,6.013]
[1766510006748,0.13524763,2950.5,2949.6,9.404]
[1766510006951,0.13524763,2950.5,2949.7,6.013]
[1766510007147,0.13524763,2950.5,2949.7,9.404]
[1766510007546,0.13923852,2950.5,2949.7,9.404]
[1766510007751,0.13923852,2950.5,2949.7,3.391]
[1766510008947,0.13923852,2950.5,2949.3,0.00508906]
[1766510009145,0.13923852,2950.5,2949.4,9.404]
[1766510009749,0.13923852,2950.5,2949.3,0.00508906]
[1766510009950,0.13923852,2950.5,2949.4,9.404]
[1766510010246,0.13923852,2950.5,2949.3,0.00508906]
[1766510010446,0.13923852,2950.5,2949.5,3.391]
[1766510011742,0.16956,2950.3,2949.3,0.00508906]
[1766510011953,0.16956,2950.3,2949.4,9.403]
[1766510012256,1.03731873,2950.2,2949.4,9.403]
[1766510012453,1.03731873,2950.1,2949.4,9.403]
[1766510012653,1.03731873,2950.0,2949.4,9.403]
[1766510012852,1.03731873,2949.9,2949.3,0.00508906]
[1766510013153,0.16956,2950.3,2949.5,6.012]
[1766510014854,0.00399089,2950.5,2949.5,6.012]
[1766510015866,1.37808906,2951.0,2949.7,1.81218341]
[1766510016067,1.20856906,2951.2,2950.0,1.81218341]
[1766510016268,0.07958,2951.3,2950.1,6.615]
[1766510016470,0.07958,2951.3,2949.7,1.81218341]
[1766510016767,0.08341541,2951.3,2949.8,17.881]
[1766510016964,1.81218341,2951.0,2949.4,0.0804]
[1766510017270,1.81218341,2951.0,2949.5,17.881]
[1766510017466,0.24991,2951.1,2949.5,17.881]
[1766510017669,0.24991,2951.1,2949.6,9.403]
[1766510018673,0.16951,2951.1,2949.7,1.81218341]
[1766510019073,0.16951,2951.1,2949.8,4.547]
[1766510019263,0.16951,2951.1,2949.9,9.403]
[1766510021861,0.16951,2951.1,2949.8,1.81218341]
[1766510022065,0.16951,2951.1,2949.9,4.364]
[1766510023472,0.16951,2951.1,2950.0,6.011]
[1766510023673,0.16951,2951.1,2950.1,3.39]
[1766510025173,1.03008436,2951.0,2950.1,3.39]
[1766510025476,0.16951,2951.1,2950.1,3.39]
[1766510025477,1.03008436,2950.9,2950.1,3.39]
[1766510025667,1.03008436,2950.8,2950.1,3.39]
[1766510025868,1.03008436,2950.7,2950.1,3.39]
[1766510026070,0.16951,2951.1,2950.1,3.39]
[1766510026270,1.0301232,2951.0,2950.0,0.0762]
[1766510026578,0.16951,2951.1,2950.0,0.0762]
[1766510026579,1.0301232,2950.9,2950.1,9.401]
[1766510026878,1.0301232,2950.8,2950.1,9.401]
[1766510027179,0.16951,2951.1,2950.1,9.401]
[1766510027379,1.02986244,2951.0,2950.1,9.401]
[1766510027777,1.02986244,2951.0,2950.0,0.0762]
[1766510028284,1.02986244,2951.0,2950.1,3.88]
[1766510031081,0.16951,2951.1,2950.1,3.88]
[1766510031278,0.08341541,2951.3,2950.1,3.88]
[1766510031479,0.08341541,2951.3,2950.2,1.81218341]
[1766510031876,0.08341541,2951.3,2950.0,0.0761]
[1766510032084,0.08341541,2951.3,2950.1,3.468]
[1766510033876,0.08341541,2951.3,2950.2,9.4]
[1766510034782,0.08341541,2951.3,2950.3,1.81218341]
[1766510036085,0.08341541,2951.3,2950.2,9.4]
[1766510036289,0.25291541,2951.3,2949.3,1.81727247]
[1766510036481,3.64291541,2951.3,2949.4,17.875]
[1766510037482,3.64291541,2951.3,2949.6,1.81218341]
[1766510037688,3.64291541,2951.3,2949.7,6.012]
[1766510037889,3.64291541,2951.3,2949.8,3.39]
[1766510038784,3.64291541,2951.3,2949.6,1.81218341]
[1766510039088,3.64291541,2951.3,2949.9,6.012]
[1766510039292,3.64291541,2951.3,2950.0,3.39]
[1766510040085,3.64291541,2951.3,2949.9,0.08499999]
[1766510040292,0.1695,2951.2,2950.0,4.514]
[1766510040588,0.1695,2951.2,2950.1,3.39]
[1766510043685,3.47341541,2951.3,2949.4,1.81218341]
[1766510043885,0.16957,2950.0,2949.3,0.00508906]
[1766510044093,1.98177341,2949.7,2948.8,3.39]
[1766510044285,5.37177341,2949.7,2948.7,3.39]
[1766510044480,3.55959,2949.7,2948.7,3.39]
[1766510044684,3.55959,2949.7,2947.8,1.81218341]
[1766510044893,3.55959,2949.7,2948.7,3.39]
[1766510045087,0.00508906,2949.5,2948.9,0.00508906]
[1766510045284,0.00508906,2949.5,2949.0,3.39]
[1766510045787,3.55959,2949.7,2948.9,0.00508906]
[1766510045985,3.55959,2949.7,2949.0,3.39]
[1766510046988,3.39,2949.7,2949.0,3.39]
[1766510048183,3.4746,2950.0,2948.9,0.00508906]
[1766510048383,3.39,2950.0,2949.0,3.79]
[1766510049995,3.55957,2950.0,2949.0,0.4]
[1766510050199,1.81218341,2949.8,2949.1,3.391]
[1766510050897,3.55957,2950.0,2949.1,3.391]
[1766510051790,3.55957,2950.0,2948.9,0.00508906]
[1766510052285,3.55957,2950.0,2949.0,3.391]
[1766510055202,3.55957,2950.0,2948.9,0.08928906]
[1766510055392,3.55957,2950.0,2949.0,3.61]
[1766510056506,3.55957,2950.0,2948.9,0.08908905]
[1766510056797,3.55957,2950.0,2949.0,9.403]
[1766510057900,3.55957,2950.0,2948.9,0.08908905]
[1766510058097,3.55957,2950.0,2948.9,0.00508906]
[1766510058098,3.39,2950.0,2948.9,0.00508906]
[1766510058308,0.16958,2949.8,2949.0,3.391]
[1766510058496,3.391,2950.0,2949.0,3.391]
[1766510060605,3.391,2950.0,2949.0,5.612]
[1766510060791,3.391,2950.0,2949.1,3.391]
[1766510060997,3.391,2950.0,2948.9,0.00508906]
[1766510061198,3.391,2950.0,2949.0,3.407]
[1766510061499,3.56057,2950.0,2949.1,3.391]
[1766510062308,3.56057,2950.0,2948.9,0.00508906]
[1766510062499,3.56057,2950.0,2949.0,3.391]
[1766510063305,3.56057,2950.0,2948.9,5.15708906]
[1766510063509,3.56057,2950.0,2949.0,3.391]
[1766510063906,3.56057,2950.0,2948.9,0.00508906]
[1766510064107,3.56057,2950.0,2949.0,3.391]
[1766510064316,3.56057,2950.0,2948.9,0.00508906]
[1766510064611,3.56057,2950.0,2949.0,3.391]
[1766510067015,3.56057,2950.0,2948.9,0.00508906]
[1766510067213,0.16958,2949.9,2949.0,3.391]
[1766510067611,0.16958,2949.9,2948.9,0.00508906]
[1766510067813,3.50040001,2950.0,2948.9,0.00508906]
[1766510068016,0.16959,2949.7,2948.9,0.00508906]
[1766510068217,3.56059,2949.7,2948.9,0.00508906]
[1766510069808,3.56059,2949.7,2949.0,3.391]
[1766510070009,3.56059,2949.7,2948.9,0.00508906]
[1766510070315,3.56059,2949.7,2949.0,3.391]
[1766510071517,0.17468906,2949.6,2948.7,3.391]
[1766510072414,0.17468906,2949.6,2948.9,0.00508906]
[1766510073422,0.00508906,2949.6,2948.9,0.00508906]
[1766510073717,3.391,2950.2,2948.9,0.00508906]
[1766510075328,0.16957,2950.1,2949.0,5.743]
[1766510078522,0.16957,2950.1,2948.9,0.00508906]
[1766510078724,0.16958,2949.9,2948.9,0.00508906]
[1766510078925,3.56058,2949.8,2948.9,3.39608906]
[1766510079331,0.1696,2949.5,2948.6,3.39515565]
[1766510079529,3.391,2949.4,2948.6,3.39515565]
[1766510080321,3.56061,2949.4,2947.4,2.05287991]
[1766510080521,3.56061,2949.4,2948.2,0.0889]
[1766510080724,3.56061,2949.4,2948.3,3.391]
[1766510081424,3.56061,2949.4,2948.6,0.00508906]
[1766510081620,3.56061,2949.4,2948.6,3.39608906]
[1766510086328,3.56061,2949.4,2948.7,3.391]
[1766510087124,3.56061,2949.4,2948.6,3.39708906]
[1766510087727,3.56061,2949.4,2948.7,3.392]
[1766510087928,3.56061,2949.4,2948.6,0.00508906]
[1766510088129,3.56061,2949.4,2948.6,3.39708906]
[1766510089924,3.56061,2949.4,2948.6,0.00508906]
[1766510090130,3.56061,2949.4,2948.6,3.39708906]
[1766510094327,3.56061,2949.4,2948.6,0.00508906]
[1766510094535,3.56061,2949.4,2948.6,3.39708906]
[1766510098030,4.73523567,2949.4,2948.6,3.39708906]
[1766510098437,3.56061,2949.4,2948.6,3.39708906]
[1766510099244,3.56061,2949.4,2948.6,0.00508906]
[1766510101339,0.00508906,2949.6,2948.6,0.00508906]
[1766510101539,3.392,2949.7,2949.0,1.17462567]
[1766510101841,3.392,2949.7,2949.1,3.392]
[1766510102053,0.16958,2949.9,2949.1,3.392]
[1766510102249,0.16958,2949.9,2948.9,6.011]
[1766510102558,0.00508906,2949.7,2949.2,3.392]
[1766510102754,3.392,2950.0,2949.2,3.392]
[1766510103250,3.392,2950.0,2949.3,3.392]
[1766510104552,3.392,2950.7,2949.4,1.17462567]
[1766510104951,3.392,2950.7,2949.5,8.48]
[1766510105149,3.392,2950.7,2949.6,9.402]
[1766510105352,3.392,2950.7,2949.6,10.57662567]
[1766510105551,0.16953,2950.8,2949.8,1.17462567]
[1766510105751,0.16953,2950.8,2949.9,3.392]
[1766510107453,3.392,2951.0,2949.9,3.392]
[1766510107652,3.392,2951.0,2950.2,0.00508906]
[1766510107851,3.392,2951.0,2950.3,3.391]
[1766510108050,3.54291541,2951.3,2950.3,3.391]
[1766510108255,3.47441541,2951.3,2950.3,3.391]
[1766510110661,1.17462567,2951.2,2950.4,9.4]
[1766510110856,1.17462567,2951.2,2950.4,0.00239024]
[1766510111054,1.17462567,2950.8,2950.0,0.0685]
[1766510111254,1.17462567,2950.8,2950.1,3.391]
[1766510111452,0.16951,2951.2,2950.2,3.391]
[1766510112055,1.34413567,2951.2,2950.2,0.00267199]
[1766510112256,0.00508906,2951.0,2950.4,0.00508906]
[1766510112456,0.00508906,2951.0,2950.5,3.391]
[1766510112765,0.00508906,2951.0,2950.4,3.391]
[1766510113460,0.00508906,2951.0,2950.2,0.00267199]
[1766510113661,0.00508906,2951.0,2950.3,3.391]
[1766510113864,0.00508906,2951.0,2950.4,0.00508906]
[1766510116266,0.00508906,2951.0,2950.5,3.39]
[1766510116860,0.16951,2951.2,2950.5,3.39]
[1766510117357,1.34279926,2951.2,2950.5,3.39]
[1766510117954,0.00508906,2951.1,2950.5,3.39]
[1766510118562,3.47441541,2951.3,2950.5,4.56328926]
[1766510118869,1.17328926,2951.2,2950.4,0.07398905]
[1766510119070,1.17328926,2951.0,2950.5,3.39]
[1766510119766,3.47341541,2951.3,2950.5,3.39]
[1766510119958,1.17328926,2951.2,2950.5,3.39]
[1766510120160,4.64670467,2951.3,2950.5,3.39]
[1766510120566,3.47341541,2951.3,2950.5,3.39]
[1766510121472,3.47341541,2951.3,2950.6,1.17328926]
[1766510122567,0.08341541,2951.3,2950.6,1.17328926]
[1766510124272,0.08341541,2951.3,2950.7,3.39]
[1766510124861,1.541e-05,2951.3,2950.7,3.39]
[1766510125968,0.16949,2951.5,2950.7,3.39]
[1766510126467,3.39,2951.7,2950.7,3.39]
[1766510126669,4.56328926,2951.7,2950.7,1.17328926]
[1766510126868,4.5658952,2951.7,2950.8,9.395]
[1766510128370,1.17328926,2951.3,2950.7,0.0028]
[1766510128566,1.17328926,2950.9,2950.6,3.39]
[1766510128769,1.17328926,2950.9,2950.2,0.00267199]
[1766510128977,1.17328926,2950.9,2950.4,6.005]
[1766510129274,1.17328926,2951.1,2950.4,6.005]
[1766510129573,0.00508906,2951.0,2950.5,0.00508906]
[1766510129768,0.00508906,2951.0,2950.6,3.39]
[1766510131672,1.17328926,2951.3,2950.6,3.39]
[1766510133074,3.55949,2951.4,2950.6,3.39]
[1766510133275,4.73277926,2951.4,2950.6,3.39]
[1766510136376,4.73277926,2951.4,2950.7,3.39]